bitfinex/quotes_SOLUSD_20230120
["timestamp","ask_amount","ask_price","bid_price","bid_amount"]
[1674204777902,20.0,21.07,21.058,10.0]
[1674204778115,20.0,21.07,21.06,15.34]
[1674204778307,20.0,21.072,21.06,15.34]
[1674204778934,35.59,21.073,21.06,15.34]
[1674204779148,45.59,21.075,21.061,35.61]
[1674204779370,10.0,21.075,21.06,50.96]
[1674204779579,10.0,21.075,21.061,10.0]
[1674204780208,0.96,21.073,21.06,50.96]
[1674204780423,10.0,21.072,21.06,35.62]
[1674204780622,10.0,21.072,21.059,35.62]
[1674204781043,56.35999187,21.072,21.059,35.62]
[1674204782830,56.35999187,21.072,21.058,45.62]
[1674204783035,56.35999187,21.072,21.059,17.0]
[1674204784509,56.35999187,21.072,21.058,45.62]
[1674204786853,46.35999187,21.072,21.058,45.62]
[1674204787063,46.35999187,21.072,21.059,17.0]
[1674204787384,46.35999187,21.072,21.06,10.0]
[1674204789692,46.35999187,21.072,21.061,17.0]
[1674204790103,46.35999187,21.072,21.062,10.0]
[1674204790635,46.35999187,21.072,21.062,45.61]
[1674204790853,46.35999187,21.072,21.062,10.0]
[1674204791034,46.35999187,21.072,21.064,10.0]
[1674204791987,46.35999187,21.072,21.061,45.61]
[1674204792195,46.35999187,21.072,21.06,25.21]
[1674204792424,10.0,21.07,21.055,45.62]
[1674204792742,18.92,21.069,21.055,10.0]
[1674204793455,18.92,21.069,21.053,35.63]
[1674204793681,18.92,21.069,21.054,119.2819]
[1674204793682,20.0,21.068,21.054,119.2819]
[1674204794004,10.0,21.066,21.054,119.2819]
[1674204794201,10.0,21.064,21.054,119.2819]
[1674204794739,1.92,21.063,21.054,119.2819]
[1674204795351,35.61,21.066,21.055,10.0]
[1674204795593,0.96,21.065,21.055,10.0]
[1674204795788,20.0,21.068,21.055,10.0]
[1674204796004,54.52,21.067,21.055,10.0]
[1674204796395,37.52,21.067,21.055,10.0]
[1674204798420,33.75576951,21.066,21.05,60.97]
[1674204798615,18.92,21.065,21.05,25.34]
[1674204798825,35.61,21.064,21.05,60.97]
[1674204799035,18.92,21.063,21.05,60.97]
[1674204799267,18.92,21.063,21.05,25.34]
[1674204799482,1.92,21.063,21.05,25.34]
[1674204800636,11.92,21.063,21.05,25.34]
[1674204800856,17.0,21.062,21.05,25.34]
[1674204801039,1.92,21.061,21.05,25.34]
[1674204801898,1.92,21.061,21.049,116.2282]
[1674204802839,0.96,21.061,21.049,116.2282]
[1674204803050,18.92,21.062,21.05,10.0]
[1674204803246,18.92,21.062,21.049,116.2282]
[1674204803457,10.0,21.061,21.049,116.2282]
[1674204803667,18.92,21.06,21.049,116.2282]
[1674204806731,18.92,21.06,21.045,35.64]
[1674204806944,10.0,21.058,21.045,35.64]
[1674204807130,21.92,21.057,21.045,35.64]
[1674204807341,21.92,21.057,21.046,10.0]
[1674204807564,21.92,21.057,21.045,35.64]
[1674204808513,20.96,21.057,21.045,35.64]
[1674204809768,20.0,21.057,21.045,35.64]
[1674204812205,20.0,21.057,21.046,10.0]
[1674204812948,35.61,21.064,21.047,35.64]
[1674204813136,137.5559,21.065,21.048,17.0]
[1674204813349,137.5559,21.065,21.049,45.63]
[1674204813771,10.0,21.064,21.049,45.63]
[1674204814631,35.61,21.063,21.049,10.0]
[1674204815155,10.0,21.061,21.048,10.0]
[1674204816729,28.92,21.062,21.048,10.0]
[1674204817036,10.0,21.061,21.047,35.64]
[1674204817258,1.92,21.06,21.047,35.64]
[1674204817864,1.92,21.06,21.048,10.0]
[1674204818515,35.61,21.063,21.048,10.0]
[1674204818705,1.92,21.062,21.048,10.0]
[1674204820800,18.92,21.062,21.048,10.0]
[1674204821431,35.61,21.063,21.048,10.0]
[1674204821851,10.0,21.064,21.048,10.0]
[1674204821852,45.61,21.064,21.048,10.0]
[1674204822190,10.0,21.062,21.048,10.0]
[1674204822402,1.92,21.061,21.048,10.0]
[1674204823644,54.53,21.061,21.048,10.0]
[1674204823854,36.57,21.061,21.048,10.0]
[1674204824069,35.61,21.064,21.048,10.0]
[1674204824281,18.92,21.063,21.048,10.0]
[1674204824496,1.92,21.063,21.049,35.63]
[1674204824817,1.92,21.063,21.05,10.0]
[1674204825026,37.53,21.063,21.05,10.0]
[1674204827437,35.6,21.068,21.051,52.63]
[1674204827624,20.0,21.067,21.052,10.96]
[1674204827834,20.0,21.067,21.053,53.59]
[1674204828046,20.0,21.067,21.054,10.96]
[1674204828262,20.0,21.071,21.055,53.58]
[1674204828479,35.6,21.07,21.056,10.0]
[1674204828809,20.0,21.069,21.056,10.0]
[1674204829540,0.96,21.07,21.056,10.0]
[1674204829541,56.56,21.07,21.056,10.0]
[1674204829754,23.75576951,21.074,21.057,55.62]
[1674204829946,23.75576951,21.074,21.06,15.29]
[1674204830166,35.59,21.076,21.061,10.96]
[1674204830373,35.59,21.076,21.062,17.0]
[1674204830580,35.59,21.077,21.063,10.0]
[1674204831093,17.96,21.076,21.063,10.0]
[1674204831308,18.92,21.076,21.063,10.0]
[1674204833954,18.92,21.076,21.061,10.0]
[1674204836047,35.59,21.078,21.063,10.0]
[1674204836257,20.0,21.077,21.064,18.92]
[1674204836464,20.0,21.077,21.065,10.0]
[1674204836680,20.0,21.08,21.065,10.0]
[1674204836883,35.58,21.079,21.065,10.0]
[1674204837094,20.0,21.078,21.065,10.0]
[1674204837845,20.0,21.079,21.065,10.0]
[1674204839294,35.59,21.078,21.065,10.0]
[1674204839506,20.0,21.077,21.065,10.0]
[1674204840240,20.0,21.079,21.065,10.0]
[1674204840450,35.59,21.078,21.065,10.0]
[1674204840656,20.96,21.077,21.063,10.0]
[1674204840886,10.96,21.076,21.063,10.0]
[1674204841096,17.96,21.075,21.063,10.0]
[1674204841319,0.96,21.075,21.063,10.0]
[1674204841628,36.55,21.076,21.063,10.0]
[1674204842689,0.96,21.075,21.063,10.0]
[1674204843116,0.96,21.075,21.061,45.61]
[1674204843633,20.0,21.077,21.063,10.0]
[1674204843842,10.0,21.078,21.063,10.0]
[1674204844059,57.51,21.077,21.063,10.0]
[1674204844582,27.0,21.076,21.061,35.61]
[1674204844793,1.92,21.075,21.06,25.29]
[1674204844985,45.59,21.074,21.058,45.62]
[1674204845197,38.92,21.073,21.055,45.62]
[1674204845401,35.6,21.072,21.054,109.9751]
[1674204845610,38.92,21.071,21.054,109.9751]
[1674204845821,35.6,21.07,21.054,109.9751]
[1674204846048,48.92,21.069,21.054,109.9751]
[1674204846268,35.6,21.068,21.054,109.9751]
[1674204846465,10.0,21.066,21.054,109.9751]
[1674204846790,1.92,21.065,21.054,109.9751]
[1674204846995,0.96,21.065,21.054,109.9751]
[1674204847196,0.96,21.066,21.054,109.9751]
[1674204847402,0.96,21.065,21.055,10.0]
[1674204849192,17.96,21.065,21.055,10.0]
[1674204849402,0.96,21.064,21.055,10.0]
[1674204853828,0.96,21.064,21.054,109.9751]
[1674204855094,0.96,21.063,21.054,109.9751]
[1674204857519,0.96,21.063,21.052,35.63]
[1674204857737,10.96,21.062,21.047,35.64]
[1674204858046,17.96,21.061,21.045,35.64]
[1674204858237,0.96,21.062,21.045,35.64]
[1674204858448,0.96,21.062,21.05,10.0]
[1674204858864,53.57,21.064,21.05,10.0]
[1674204859078,0.96,21.063,21.05,10.0]
[1674204859292,0.96,21.062,21.05,10.0]
[1674204859502,0.96,21.061,21.05,10.0]
[1674204860469,0.96,21.061,21.05,25.34]
[1674204861610,35.61,21.066,21.052,10.0]
[1674204861816,45.6,21.068,21.052,10.0]
[1674204862979,0.96,21.066,21.052,10.0]
[1674204863212,0.96,21.065,21.052,10.0]
[1674204863412,35.61,21.066,21.052,10.0]
[1674204863725,45.6,21.067,21.052,10.0]
[1674204864660,18.92,21.066,21.052,10.0]
[1674204868482,10.0,21.065,21.051,45.63]
[1674204868696,18.92,21.064,21.051,45.63]
[1674204869531,0.96,21.064,21.051,45.63]
[1674204869728,35.6,21.067,21.052,27.96]
[1674204870057,55.6,21.069,21.053,36.59]
[1674204870271,1.92,21.068,21.054,17.0]
[1674204870585,1.92,21.068,21.055,10.0]
[1674204870985,21.92,21.068,21.055,10.0]
[1674204872350,35.59,21.073,21.061,10.0]
[1674204872560,105.6344,21.076,21.061,45.61]
[1674204873499,0.96,21.075,21.061,45.61]
[1674204873728,35.59,21.077,21.062,0.96]
[1674204873938,10.0,21.078,21.063,10.0]
[1674204874146,20.0,21.077,21.063,45.61]
[1674204875214,1.92,21.076,21.062,35.61]
[1674204875420,18.92,21.076,21.062,35.61]
[1674204877721,18.92,21.076,21.063,10.0]
[1674204882364,16.42,21.076,21.063,10.0]
[1674204882883,16.42,21.076,21.062,35.61]
[1674204883203,35.59,21.075,21.061,10.0]
[1674204883398,10.0,21.074,21.061,10.0]
[1674204883830,35.59,21.075,21.061,10.0]
[1674204884234,10.0,21.074,21.06,50.96]
[1674204884449,36.55,21.073,21.06,15.34]
[1674204884654,0.96,21.072,21.06,15.34]
[1674204884985,20.0,21.077,21.062,10.0]
[1674204885195,1.92,21.076,21.062,10.0]
[1674204886126,11.92,21.076,21.062,10.0]
[1674204887292,11.92,21.076,21.061,27.0]
[1674204887503,17.0,21.075,21.061,10.0]
[1674204887703,11.92,21.074,21.061,10.0]
[1674204888245,1.92,21.074,21.061,10.0]
[1674204894362,1.92,21.074,21.061,45.61]
[1674204894670,1.92,21.074,21.061,10.0]
[1674204895192,25.67576951,21.074,21.06,50.96]
[1674204895404,27.0,21.073,21.056,112.4007]
[1674204895600,10.0,21.071,21.056,112.4007]
[1674204895815,52.6,21.07,21.056,112.4007]
[1674204896026,1.92,21.069,21.056,112.4007]
[1674204896356,1.92,21.069,21.056,122.4007]
[1674204897092,1.92,21.069,21.056,10.0]
[1674204897093,21.92,21.069,21.056,10.0]
[1674204897276,17.0,21.068,21.056,10.0]
[1674204897487,21.92,21.067,21.056,10.0]
[1674204899483,20.0,21.067,21.056,10.0]
[1674204899699,20.0,21.069,21.056,10.0]
[1674204900027,1.92,21.068,21.056,10.0]
[1674204902327,18.92,21.068,21.056,10.0]
[1674204902768,20.0,21.067,21.056,10.0]
[1674204905494,20.0,21.067,21.055,45.62]
[1674204906002,18.92,21.066,21.055,35.62]
[1674204906208,18.92,21.066,21.054,113.0697]
[1674204907701,18.92,21.066,21.055,10.0]
[1674204908457,18.92,21.066,21.054,113.0697]
[1674204909491,18.92,21.066,21.055,10.0]
[1674204911058,18.92,21.066,21.054,113.0697]
[1674204912624,35.61,21.065,21.054,113.0697]
[1674204912831,18.92,21.064,21.054,113.0697]
[1674204913248,10.0,21.063,21.054,113.0697]
[1674204913464,53.57,21.062,21.054,113.0697]
[1674204913689,18.92,21.062,21.05,10.0]
[1674204914513,18.92,21.062,21.049,86.8558]
[1674204915252,35.61,21.066,21.05,25.21]
[1674204915460,18.92,21.065,21.05,25.21]
[1674204915679,0.96,21.065,21.05,25.21]
[1674204917067,0.96,21.064,21.05,25.21]
[1674204920829,10.96,21.064,21.051,35.63]
[1674204921155,17.96,21.063,21.05,25.21]
[1674204921477,0.96,21.062,21.05,25.21]
[1674204923564,0.96,21.061,21.05,25.21]
[1674204924622,0.96,21.062,21.05,25.21]
[1674204924816,0.96,21.061,21.05,25.21]
[1674204925572,0.96,21.062,21.05,25.21]
[1674204925978,0.96,21.063,21.05,25.21]
[1674204926188,0.96,21.062,21.05,25.21]
[1674204927271,0.96,21.063,21.05,25.21]
[1674204927666,0.96,21.062,21.05,25.21]
[1674204927883,0.96,21.063,21.05,25.21]
[1674204929266,0.96,21.063,21.052,10.0]
[1674204929464,35.61,21.066,21.052,10.0]
[1674204929680,35.6,21.069,21.053,35.63]
[1674204929886,20.0,21.068,21.054,10.0]
[1674204930100,20.0,21.069,21.054,10.0]
[1674204930834,10.0,21.068,21.054,10.0]
[1674204931049,38.92,21.067,21.054,10.0]
[1674204935565,20.0,21.067,21.054,10.0]
[1674204935767,20.0,21.069,21.056,10.0]
[1674204935989,20.0,21.071,21.058,10.0]
[1674204936596,20.0,21.072,21.058,10.0]
[1674204937043,1.92,21.071,21.058,10.0]
[1674204938602,20.0,21.072,21.058,10.0]
[1674204939662,28.92,21.071,21.058,10.0]
[1674204939862,20.0,21.07,21.058,10.0]
[1674204942912,20.0,21.07,21.057,35.62]
[1674204943141,18.92,21.069,21.056,10.0]
[1674204943342,20.0,21.068,21.056,10.0]
[1674204943965,18.92,21.067,21.056,10.0]
[1674204944176,18.92,21.067,21.054,10.0]
[1674204944596,54.52,21.067,21.054,10.0]
[1674204944810,10.0,21.066,21.052,45.63]
[1674204945024,18.92,21.065,21.052,10.0]
[1674204945965,1.92,21.065,21.052,10.0]
[1674204946177,17.0,21.064,21.052,10.0]
[1674204946501,1.92,21.063,21.052,10.0]
[1674204946708,0.96,21.062,21.052,10.0]
[1674204946917,0.96,21.061,21.052,10.0]
[1674204947130,0.96,21.063,21.052,10.0]
[1674204947345,0.96,21.064,21.052,10.0]
[1674204947546,0.96,21.063,21.052,10.0]
[1674204948175,17.96,21.063,21.052,10.0]
[1674204948406,0.96,21.062,21.052,10.0]
[1674204948588,0.96,21.063,21.052,10.0]
[1674204952396,0.96,21.064,21.052,10.0]
[1674204952812,0.96,21.065,21.052,10.0]
[1674204953033,0.96,21.064,21.052,10.0]
[1674204953346,0.96,21.064,21.054,10.0]
[1674204960843,0.96,21.064,21.052,35.63]
[1674204961013,0.96,21.063,21.049,122.4858]
[1674204961222,10.96,21.062,21.049,122.4858]
[1674204961432,0.96,21.061,21.049,122.4858]
[1674204961644,0.96,21.061,21.05,10.0]
[1674204962188,0.96,21.06,21.049,122.4858]
[1674204962379,10.0,21.064,21.049,122.4858]
[1674204962380,20.0,21.068,21.05,17.0]
[1674204962601,20.0,21.068,21.052,10.0]
[1674204962913,20.0,21.068,21.054,10.0]
[1674204963117,10.0,21.07,21.054,10.0]
[1674204963320,55.6,21.069,21.054,10.0]
[1674204963951,28.92,21.068,21.054,10.0]
[1674204964167,20.0,21.067,21.054,10.0]
[1674204966506,17.0,21.066,21.054,10.0]
[1674204966722,0.96,21.065,21.054,10.0]
[1674204967246,35.6,21.069,21.054,10.0]
[1674204967466,216.9781,21.076,21.06,15.34]
[1674204967673,105.1525,21.076,21.061,45.61]
[1674204968072,105.1525,21.076,21.062,10.0]
[1674204969237,0.96,21.075,21.062,10.0]
[1674204969447,0.96,21.074,21.062,10.0]
[1674204969875,17.96,21.075,21.062,10.0]
[1674204971226,0.96,21.074,21.062,10.0]
[1674204977772,0.96,21.073,21.062,10.0]
[1674204984186,0.96,21.074,21.062,10.0]
[1674204984575,23.75576951,21.078,21.063,35.61]
[1674204984784,20.0,21.077,21.064,18.92]
[1674204985111,20.0,21.077,21.065,35.61]
[1674204985320,20.0,21.08,21.066,10.0]
[1674204986071,20.0,21.081,21.068,10.0]
[1674204986795,55.58,21.081,21.068,10.0]
[1674204987013,18.92,21.08,21.068,10.0]
[1674204987207,20.0,21.079,21.068,10.0]
[1674204988470,35.58,21.081,21.07,15.34]
[1674204988681,23.75576951,21.086,21.07,15.34]
[1674204988682,23.75576951,21.086,21.071,35.6]
[1674204988890,35.57,21.089,21.072,17.0]
[1674204989101,23.75576951,21.09,21.073,35.59]
[1674204989325,35.57,21.089,21.074,10.0]
[1674204990166,38.92,21.088,21.074,10.0]
[1674204990376,48.92,21.088,21.074,10.0]
[1674204991849,38.92,21.088,21.074,10.0]
[1674204998154,55.57,21.088,21.076,10.0]
[1674204998344,20.0,21.088,21.076,10.0]
[1674204998555,20.0,21.091,21.076,10.0]
[1674204998867,35.57,21.09,21.076,10.0]
[1674204999212,20.0,21.089,21.076,10.0]
[1674204999610,20.0,21.091,21.076,10.0]
[1674204999939,54.49,21.09,21.076,10.0]
[1674205000159,20.0,21.089,21.076,10.0]
[1674205000343,37.49,21.088,21.076,10.0]
[1674205000554,20.0,21.087,21.076,10.0]
[1674205000764,20.0,21.087,21.073,10.0]
[1674205000982,18.92,21.086,21.071,10.0]
[1674205001394,54.49,21.086,21.071,10.0]
[1674205006254,54.49,21.086,21.07,15.34]
[1674205006578,10.0,21.085,21.07,25.34]
[1674205006767,54.5,21.084,21.07,25.34]
[1674205006976,20.0,21.083,21.065,119.2386]
[1674205007188,47.5,21.082,21.065,119.2386]
[1674205007398,37.0,21.081,21.065,119.2386]
[1674205007609,37.5,21.08,21.065,119.2386]
[1674205007830,47.0,21.079,21.065,119.2386]
[1674205008153,37.51,21.078,21.065,119.2386]
[1674205008334,37.0,21.077,21.065,119.2386]
[1674205008549,1.92,21.076,21.065,119.2386]
[1674205008774,37.51,21.076,21.065,119.2386]
[1674205008971,17.0,21.075,21.065,119.2386]
[1674205009185,1.92,21.074,21.065,119.2386]
[1674205010148,20.0,21.077,21.065,119.2386]
[1674205010562,1.92,21.076,21.066,10.0]
[1674205012960,1.92,21.076,21.065,119.2386]
[1674205013274,18.92,21.076,21.065,119.2386]
[1674205013828,18.92,21.076,21.066,10.0]
[1674205019814,18.92,21.076,21.065,119.2386]
[1674205020536,20.0,21.077,21.066,10.0]
[1674205020741,20.0,21.078,21.066,10.0]
[1674205020973,1.92,21.077,21.066,10.0]
[1674205021607,35.58,21.081,21.066,10.0]
[1674205021608,35.57,21.085,21.07,15.21]
[1674205021928,35.57,21.088,21.072,10.0]
[1674205022754,35.57,21.088,21.071,35.6]
[1674205022960,69.32576951,21.086,21.07,15.21]
[1674205023185,69.32576951,21.086,21.068,45.6]
[1674205023715,35.57,21.086,21.07,15.34]
[1674205023920,35.57,21.088,21.071,45.6]
[1674205024533,10.0,21.086,21.071,45.6]
[1674205025191,0.96,21.085,21.071,45.6]
[1674205025585,17.96,21.085,21.071,45.6]
[1674205025798,0.96,21.084,21.071,45.6]
[1674205026020,0.96,21.083,21.071,45.6]
[1674205028425,0.96,21.082,21.071,45.6]
[1674205029184,0.96,21.081,21.071,35.6]
[1674205029585,0.96,21.082,21.072,10.0]
[1674205029792,0.96,21.082,21.073,35.59]
[1674205030649,0.96,21.081,21.073,35.59]
[1674205037169,0.96,21.08,21.073,35.59]
[1674205037385,0.96,21.079,21.072,10.0]
[1674205037805,0.96,21.079,21.069,35.6]
[1674205038114,0.96,21.078,21.069,35.6]
[1674205038328,0.96,21.077,21.069,35.6]
[1674205038518,0.96,21.076,21.068,35.6]
[1674205038727,0.96,21.075,21.065,164.8486]
[1674205038938,0.96,21.074,21.065,164.8486]
[1674205039360,0.96,21.074,21.066,10.0]
[1674205041270,20.0,21.078,21.066,10.0]
[1674205041491,20.0,21.081,21.066,10.0]
[1674205041690,20.0,21.084,21.068,10.0]
[1674205041901,35.57,21.085,21.07,10.0]
[1674205042091,108.0541,21.087,21.071,35.6]
[1674205042428,108.0541,21.087,21.072,10.0]
[1674205042628,108.0541,21.087,21.074,10.0]
[1674205043160,18.92,21.086,21.074,10.0]
[1674205043563,17.0,21.085,21.074,10.0]
[1674205043777,1.92,21.084,21.074,10.0]
[1674205043982,1.92,21.086,21.074,10.0]
[1674205044318,17.0,21.087,21.074,10.0]
[1674205044740,17.0,21.088,21.074,10.0]
[1674205044938,10.0,21.087,21.074,10.0]
[1674205045149,17.0,21.086,21.074,10.0]
[1674205045359,10.0,21.085,21.073,35.59]
[1674205045570,18.92,21.084,21.073,35.59]
[1674205046718,1.92,21.084,21.073,35.59]
[1674205047782,1.92,21.084,21.071,35.6]
[1674205048103,18.92,21.084,21.071,35.6]
[1674205048418,18.92,21.084,21.07,10.0]
[1674205048628,18.92,21.084,21.072,10.0]
[1674205055136,35.57,21.086,21.073,17.0]
[1674205055467,35.57,21.09,21.075,10.0]
[1674205055645,20.0,21.089,21.075,10.0]
[1674205056502,1.92,21.088,21.075,10.0]
[1674205058384,10.0,21.087,21.074,35.59]
[1674205058603,1.92,21.086,21.073,35.59]
[1674205059874,20.0,21.089,21.074,27.0]
[1674205060588,20.0,21.089,21.075,35.59]
[1674205060921,35.57,21.088,21.069,35.6]
[1674205061117,20.0,21.087,21.069,35.6]
[1674205061329,53.53,21.086,21.069,35.6]
[1674205061664,10.96,21.085,21.069,35.6]
[1674205061874,17.96,21.084,21.069,35.6]
[1674205062056,0.96,21.083,21.069,35.6]
[1674205062284,35.57,21.086,21.07,15.34]
[1674205062499,20.0,21.087,21.072,10.0]
[1674205062716,20.0,21.09,21.073,52.59]
[1674205062919,20.0,21.09,21.074,10.0]
[1674205063135,20.0,21.09,21.075,35.59]
[1674205063345,20.0,21.09,21.076,10.0]
[1674205063554,17.0,21.089,21.076,10.0]
[1674205063765,20.0,21.088,21.076,10.0]
[1674205064192,20.0,21.09,21.076,10.0]
[1674205064911,20.0,21.09,21.078,10.0]
[1674205065339,20.0,21.092,21.078,10.0]
[1674205065549,35.56,21.094,21.078,9.89733537]
[1674205065757,35.56,21.095,21.08,10.0]
[1674205066095,35.56,21.095,21.082,10.0]
[1674205066913,17.96,21.094,21.082,10.0]
[1674205067245,0.96,21.093,21.082,10.0]
[1674205067436,0.96,21.092,21.082,10.0]
[1674205067646,78.39701973,21.099,21.082,10.0]
[1674205067858,35.55,21.099,21.083,17.0]
[1674205068079,20.0,21.098,21.084,35.58]
[1674205068283,20.0,21.098,21.083,35.58]
[1674205068499,20.0,21.098,21.084,10.0]
[1674205068716,20.0,21.099,21.085,35.57]
[1674205068934,20.0,21.099,21.086,10.0]
[1674205069648,18.92,21.098,21.086,10.0]
[1674205070069,20.0,21.097,21.086,10.0]
[1674205070300,1.92,21.096,21.086,10.0]
[1674205070492,20.0,21.097,21.086,10.0]
[1674205070818,20.0,21.098,21.086,10.0]
[1674205071028,1.92,21.097,21.086,10.0]
[1674205077426,35.54,21.102,21.09,15.25]
[1674205077644,1.92,21.101,21.091,35.56]
[1674205077852,1.92,21.101,21.092,10.0]
[1674205078388,35.54,21.107,21.092,10.0]
[1674205078592,175.24626951,21.108,21.093,35.56]
[1674205078795,20.0,21.107,21.094,10.0]
[1674205079545,17.96,21.106,21.094,10.0]
[1674205079756,0.96,21.105,21.094,10.0]
[1674205079941,0.96,21.106,21.094,10.0]
[1674205081227,0.96,21.105,21.094,10.0]
[1674205081441,0.96,21.104,21.094,10.0]
[1674205085006,0.96,21.105,21.094,10.0]
[1674205085217,0.96,21.106,21.095,35.56]
[1674205085537,0.96,21.105,21.095,35.56]
[1674205085742,20.0,21.108,21.095,35.56]
[1674205085933,20.0,21.109,21.096,10.0]
[1674205086151,20.0,21.109,21.097,35.55]
[1674205086363,20.0,21.111,21.097,35.55]
[1674205086572,20.0,21.111,21.098,10.0]
[1674205087112,18.92,21.11,21.098,10.0]
[1674205087429,20.0,21.109,21.098,10.0]
[1674205087646,1.92,21.108,21.098,10.0]
[1674205088251,1.92,21.108,21.097,35.55]
[1674205088478,18.92,21.108,21.095,35.56]
[1674205088690,20.0,21.107,21.094,10.0]
[1674205088905,18.92,21.106,21.094,10.0]
[1674205089303,18.92,21.106,21.093,35.56]
[1674205090161,18.92,21.106,21.094,10.0]
[1674205090372,42.67576951,21.106,21.095,35.56]
[1674205090592,42.67576951,21.106,21.092,45.56]
[1674205091929,18.92,21.106,21.092,45.56]
[1674205092349,42.67576951,21.106,21.092,45.56]
[1674205092565,35.54,21.105,21.092,10.0]
[1674205092778,18.92,21.104,21.092,10.0]
[1674205093207,1.92,21.104,21.092,10.0]
[1674205093850,1.92,21.104,21.094,10.0]
[1674205102356,20.0,21.107,21.094,10.0]
[1674205102578,1.92,21.106,21.096,10.0]
[1674205102759,1.92,21.106,21.097,35.55]
[1674205102974,1.92,21.106,21.096,10.0]
[1674205103598,1.92,21.106,21.095,35.56]
[1674205103813,18.92,21.106,21.095,35.56]
[1674205104775,18.92,21.106,21.096,10.0]
[1674205106880,1.92,21.106,21.096,10.0]
[1674205107820,20.0,21.107,21.096,10.0]
[1674205108248,20.0,21.109,21.096,10.0]
[1674205108453,1.92,21.108,21.097,35.55]
[1674205108856,18.92,21.108,21.095,35.56]
[1674205109067,20.0,21.107,21.095,35.56]
[1674205109280,18.92,21.106,21.095,35.56]
[1674205114550,18.92,21.106,21.096,10.0]
[1674205114741,35.52,21.114,21.1,15.21]
[1674205114947,35.52,21.117,21.101,10.0]
[1674205116228,42.67576951,21.116,21.102,35.54]